bitfinex-derivatives/quotes_ETHF0:USTF0_20250923
["timestamp","ask_amount","ask_price","bid_price","bid_amount"]
[1758666050506,0.89253,4179.5,4179.4,0.84434]
[1758666050705,0.89253,4179.5,4179.4,1.15544]
[1758666051509,0.462,4179.5,4179.4,1.15544]
[1758666051711,4.07445,4180.3,4180.2,0.7249]
[1758666051923,3.644,4180.3,4180.2,1.15536]
[1758666052711,4.07445,4180.3,4180.2,1.15536]
[1758666052915,4.40975,4180.3,4180.2,1.15536]
[1758666054921,3.9793,4180.3,4180.2,1.15536]
[1758666055319,4.52737419,4180.3,4180.2,1.15536]
[1758666055515,3.644,4180.3,4180.2,1.15536]
[1758666055718,3.4278,4180.3,4180.2,1.15536]
[1758666057517,3.2078,4180.3,4180.2,1.15536]
[1758666057716,3.6265,4180.8,4180.7,0.5494]
[1758666057917,4.84587512,4180.8,4180.7,0.3315]
[1758666058124,0.7468,4180.3,4180.2,1.19616]
[1758666063723,0.7468,4180.3,4180.2,0.7657]
[1758666063925,3.9546,4180.3,4180.2,0.3315]
[1758666064125,0.5375,4180.0,4179.9,0.43049]
[1758666064326,0.7468,4180.0,4179.9,0.43049]
[1758666064531,0.7468,4180.0,4179.9,0.76199]
[1758666065523,0.7468,4180.0,4179.9,0.97989]
[1758666065723,0.7468,4180.0,4179.9,1.19619]
[1758666066728,1.17728,4180.0,4179.9,0.7657]
[1758666067033,1.17728,4180.0,4179.9,0.5494]
[1758666067623,1.17728,4180.0,4179.9,0.97989]
[1758666068124,1.17728,4180.0,4179.9,0.5494]
[1758666069133,1.17728,4180.0,4179.9,0.3315]
[1758666069727,1.17736,4179.2,4179.1,0.5494]
[1758666069935,1.17738,4179.0,4178.9,0.3315]
[1758666070135,1.17738,4179.0,4178.9,0.5494]
[1758666070432,1.17738,4179.0,4178.9,0.3315]
[1758666070636,1.17742,4178.6,4178.5,0.3315]
[1758666070829,0.63997,4178.1,4178.0,0.5635]
[1758666071229,0.63997,4178.1,4178.0,0.895]
[1758666071836,0.43067,4178.1,4178.0,0.895]
[1758666074730,0.43066,4178.3,4178.0,0.5635]
[1758666074935,0.65185,4178.4,4178.3,0.7374]
[1758666075934,3.2078,4178.6,4178.5,0.1219]
[1758666076241,3.87943,4178.6,4178.5,0.8593]
[1758666077532,4.10063,4178.6,4178.5,0.8593]
[1758666079636,4.64393,4178.6,4178.5,0.5174]
[1758666079835,4.64393,4178.6,4178.5,0.3095]
[1758666080239,4.2133,4178.6,4178.0,0.1293]
[1758666080443,0.4437,4177.9,4177.8,0.8586]
[1758666080843,0.4437,4177.9,4177.8,1.1681]
[1758666081437,0.87439,4177.9,4177.8,0.7374]
[1758666081639,1.19519,4177.9,4177.8,0.5174]
[1758666081839,1.19522,4177.6,4177.5,0.8667]
[1758666082232,4.40302,4177.6,4177.5,0.5174]
[1758666082748,4.40302,4177.6,4177.5,0.3095]
[1758666082941,1.19528,4177.1,4177.0,0.8667]
[1758666083339,4.40308,4177.1,4177.0,0.8667]
[1758666083542,0.4168,4176.6,4176.5,0.5613]
[1758666083739,0.7523,4176.6,4176.5,0.5613]
[1758666084144,0.7523,4176.6,4176.5,0.8929]
[1758666085045,3.9601,4176.6,4176.5,0.8929]
[1758666085240,3.5433,4176.6,4176.2,0.43087]
[1758666085439,0.43088,4176.2,4176.1,0.3316]
[1758666085643,0.4168,4175.9,4175.8,1.20191]
[1758666087952,0.2091,4175.9,4175.8,1.20191]
[1758666088548,0.7523,4175.9,4175.8,0.5528]
[1758666089853,0.7523,4175.9,4175.8,0.771]
[1758666090650,0.7523,4175.9,4175.8,1.20191]
[1758666090948,0.4168,4175.9,4175.8,1.20191]
[1758666097455,0.7523,4175.9,4175.8,1.20191]
[1758666097657,1.1832,4175.9,4175.8,1.20191]
[1758666098754,0.8477,4175.9,4175.8,1.20191]
[1758666099155,1.1832,4175.9,4175.8,1.20191]
[1758666099562,1.1832,4175.9,4175.8,0.5528]
[1758666099752,1.1832,4175.9,4175.8,0.3316]
[1758666100358,1.1832,4175.9,4175.8,0.5528]
[1758666100657,1.1832,4175.9,4175.8,0.98371]
[1758666104362,0.7523,4175.9,4175.8,0.98371]
[1758666106756,0.4168,4175.9,4175.8,1.20191]
[1758666106967,3.4498,4176.0,4175.9,1.2019]
[1758666107561,3.2078,4176.5,4176.4,1.20185]
[1758666108664,3.4169,4177.1,4177.0,0.5661]
[1758666108865,4.20423951,4177.1,4177.0,1.32849]
[1758666109066,5.17821951,4177.1,4177.0,0.3316]
[1758666109468,5.17821951,4177.1,4177.0,0.76239]
[1758666109762,5.17821951,4177.1,4177.0,1.11029]
[1758666109963,5.17821951,4177.1,4177.0,0.8977]
[1758666110462,5.17821951,4177.1,4177.0,1.32849]
[1758666112563,4.41193951,4177.1,4177.0,1.32849]
[1758666112757,4.41368373,4177.1,4177.0,1.32849]
[1758666113152,4.41368373,4177.1,4177.0,0.8977]
[1758666113153,4.84446373,4177.1,4177.0,0.8977]
[1758666113356,5.17036373,4177.1,4177.0,0.5528]
[1758666113864,5.17036373,4177.1,4177.0,0.76239]
[1758666114060,5.17036373,4177.1,4177.0,0.97139]
[1758666114664,5.17036373,4177.1,4177.0,1.09899]
[1758666115669,4.73958373,4177.1,4177.0,1.09899]
[1758666116163,0.54708373,4177.1,4177.0,1.31329]
[1758666116361,3.2078,4177.6,4177.5,1.29963]
[1758666116563,3.75515841,4177.6,4177.5,1.29963]
[1758666117155,3.97345841,4177.6,4177.5,1.29963]
[1758666117364,4.75085841,4177.6,4177.5,0.74873]
[1758666117966,5.18157841,4177.6,4177.5,0.74873]
[1758666118365,1.18447,4177.2,4177.1,0.43078]
[1758666118565,1.97327431,4177.2,4177.1,0.43078]
[1758666118962,1.97327431,4177.2,4177.1,0.74878]
[1758666120261,0.43079,4177.0,4176.7,0.318]
[1758666120471,1.97322992,4176.9,4176.8,0.4308]
[1758666120671,5.18102992,4176.9,4176.8,0.4308]
[1758666121370,0.4278,4176.7,4176.6,0.318]
[1758666121564,1.54242992,4176.7,4176.6,0.318]
[1758666122369,1.42652,4176.7,4176.6,0.74883]
[1758666124473,0.9957,4176.7,4176.6,0.95783]
[1758666124773,0.9957,4176.7,4176.6,0.527]
[1758666125368,0.242,4176.7,4176.6,1.17213]
[1758666125575,3.2078,4176.9,4176.8,1.17211]
[1758666125770,3.6681,4176.9,4176.8,1.17211]
[1758666125974,3.4498,4176.9,4176.8,1.17211]
[1758666126977,4.6343,4176.9,4176.8,0.7413]
[1758666127871,4.6343,4176.9,4176.8,1.17211]
[1758666128071,4.6343,4176.9,4176.8,0.7413]
[1758666128571,4.6343,4176.9,4176.8,0.527]
[1758666129967,4.6343,4176.9,4176.8,0.318]
[1758666130573,4.6343,4176.9,4176.8,0.95781]
[1758666131675,4.6343,4176.9,4176.8,0.527]
[1758666133064,0.43083,4176.6,4176.5,0.1276]
[1758666133268,1.42373,4176.6,4176.5,0.55844]
[1758666133473,1.42373,4176.6,4176.5,0.76064]
[1758666133669,1.42373,4176.6,4176.5,1.09064]
[1758666133867,0.6595,4176.6,4176.5,1.29214]
[1758666135077,1.09033,4176.6,4176.5,1.29214]
[1758666135876,0.84833,4176.6,4176.5,1.29214]
[1758666136079,1.09033,4176.6,4176.5,1.29214]
[1758666141784,0.6595,4176.6,4176.5,1.29214]
[1758666141983,1.09033,4176.6,4176.5,1.29214]
[1758666143873,1.41483,4176.6,4176.5,1.29214]
[1758666145183,1.09033,4176.6,4176.5,1.29214]
[1758666146886,3.2078,4176.9,4176.5,1.29214]
[1758666147181,3.2078,4176.9,4176.8,1.19881]
[1758666147572,3.4164,4177.5,4177.4,0.4349]
[1758666147782,5.17158958,4177.5,4177.4,0.768]
[1758666148986,1.17348,4177.1,4177.0,1.32108]
[1758666149178,1.72182958,4177.1,4177.0,1.32108]
[1758666149686,1.72182958,4177.1,4177.0,0.98368]
[1758666153089,1.72182958,4177.1,4177.0,0.76388]
[1758666153799,1.72182958,4177.1,4177.0,0.98368]
[1758666154482,1.72182958,4177.1,4177.0,1.10598]
[1758666154784,1.72182958,4177.1,4177.0,1.32108]
[1758666155285,1.39732958,4177.1,4177.0,1.32108]
[1758666155484,0.96654958,4177.1,4177.0,1.32108]
[1758666155688,0.54834958,4177.1,4177.0,1.32108]
[1758666155991,0.242,4177.2,4177.1,0.86568]
[1758666156191,1.22109735,4177.2,4177.1,1.19878]
[1758666156490,1.96379735,4177.2,4177.1,0.5529]
[1758666157091,1.96379735,4177.2,4177.1,0.98368]
[1758666157290,1.96379735,4177.2,4177.1,1.19878]
[1758666158688,1.39729735,4177.2,4177.1,1.19878]
[1758666158895,1.63929735,4177.2,4177.1,0.768]
[1758666159597,1.96379735,4177.2,4177.1,0.768]
[1758666160588,1.96379735,4177.2,4177.1,1.19878]
[1758666161397,1.96379735,4177.2,4177.1,0.768]
[1758666161601,1.96379735,4177.2,4177.1,0.5529]
[1758666163185,1.72179735,4177.2,4177.1,0.5529]
[1758666163389,1.96379735,4177.2,4177.1,0.5529]
[1758666164199,1.72179735,4177.2,4177.1,0.5529]
[1758666164399,1.96379735,4177.2,4177.1,0.768]
[1758666166402,1.96379735,4177.2,4177.1,1.19878]
[1758666169602,1.96379735,4177.2,4177.1,0.768]
[1758666174609,0.7515,4176.7,4176.6,0.64923]
[1758666175001,0.7515,4176.7,4176.6,1.19403]
[1758666175209,0.86602,4176.7,4176.6,1.19403]
[1758666179804,1.18232,4176.7,4176.6,1.19403]
[1758666180009,0.86602,4176.7,4176.6,1.19403]
[1758666183513,1.73097725,4176.7,4176.6,0.3321]
[1758666184009,1.18236,4176.3,4176.2,0.2184]
[1758666184411,1.18236,4176.3,4176.2,0.5505]
[1758666184612,1.73069823,4176.3,4176.2,0.98137]
[1758666185113,1.41439823,4176.3,4176.2,1.19407]
[1758666185420,0.86606,4176.3,4176.2,1.19407]
[1758666186804,1.18236,4176.3,4176.2,1.19407]
[1758666188006,0.86606,4176.3,4176.2,1.19407]
[1758666189115,0.86606,4176.3,4176.2,0.7632]
[1758666189418,1.18236,4176.3,4176.2,0.7632]
[1758666189621,1.18236,4176.3,4176.2,1.19407]
[1758666189919,0.7515,4176.3,4176.2,1.19407]
[1758666190618,1.18236,4176.3,4176.2,1.19407]
[1758666193317,1.18236,4176.3,4176.2,0.5505]
[1758666193513,0.7415,4175.8,4175.7,0.75881]
[1758666193820,4.62221,4175.8,4175.7,0.3279]
[1758666194510,1.17243,4175.7,4175.6,0.75883]
[1758666194817,1.17243,4175.7,4175.6,0.96463]
[1758666196420,1.17243,4175.7,4175.6,0.5337]
[1758666197221,1.17243,4175.7,4175.6,0.96463]
[1758666198822,1.17243,4175.7,4175.6,0.5337]
[1758666199719,1.17243,4175.7,4175.6,0.96463]
[1758666202422,1.17243,4175.7,4175.6,0.5337]
[1758666204419,1.17243,4175.7,4175.6,1.16863]
[1758666204638,3.2078,4175.8,4175.7,0.43092]
[1758666204924,0.4309,4176.0,4175.9,0.7199]
[1758666205130,4.0912,4176.0,4175.9,0.7199]
[1758666206831,4.0912,4176.0,4175.9,1.1508]
[1758666209525,0.43082,4176.7,4176.6,0.43083]
[1758666209726,1.22107795,4176.7,4176.6,1.15073]
[1758666210032,1.96650842,4176.7,4176.6,0.5167]
[1758666210231,1.96650842,4176.7,4176.6,0.3065]
[1758666210925,0.43087,4176.2,4176.0,0.1313]
[1758666211131,1.17627,4176.2,4176.1,0.7199]
[1758666211327,1.10557,4176.2,4176.1,1.15078]
[1758666211722,0.43084,4176.5,4176.4,0.43085]
[1758666211923,0.43083,4176.6,4176.5,1.28203]
[1758666212227,0.88333,4176.6,4176.5,1.28203]
[1758666212429,1.65419012,4176.6,4176.5,1.28203]
[1758666214729,1.65419012,4176.6,4176.5,0.8512]
[1758666216532,1.65419012,4176.6,4176.5,1.28204]
[1758666217632,1.43199012,4176.6,4176.5,1.28204]
[1758666218334,0.88333,4176.6,4176.5,1.28204]
[1758666218532,1.43219234,4176.6,4176.5,1.28204]
[1758666218834,1.43219234,4176.6,4176.5,0.8512]
[1758666219331,0.88333,4176.6,4176.5,0.8512]
[1758666220829,3.84911,4176.8,4176.7,0.2102]
[1758666221035,4.86213575,4176.8,4176.7,0.7199]
[1758666221234,4.31331,4176.8,4176.7,0.7199]
[1758666221432,4.31331,4176.8,4176.7,1.15072]
[1758666222327,3.4498,4176.8,4176.7,1.15072]
[1758666224327,3.2078,4176.8,4176.7,1.15072]
[1758666225328,3.63856,4177.3,4176.7,0.7199]
[1758666225536,3.84906,4177.3,4177.2,0.7199]
[1758666225831,4.09106,4177.3,4177.2,0.7199]
[1758666226231,4.09106,4177.3,4177.2,1.15067]
[1758666226436,3.6603,4177.3,4177.2,1.15067]
[1758666226631,4.09106,4177.3,4177.2,1.15067]
[1758666228331,3.4183,4177.3,4177.2,1.15067]
[1758666228538,4.09006,4177.3,4177.2,1.15067]
[1758666229630,4.31226,4177.3,4177.2,0.7199]
[1758666229828,4.62496,4177.3,4177.2,0.7199]
[1758666230430,4.62496,4177.3,4177.2,0.3065]
[1758666230736,0.4327,4177.0,4176.9,0.64099]
[1758666231033,0.5232,4176.8,4176.7,0.2102]
[1758666231234,0.7454,4176.8,4176.7,0.94752]
[1758666231535,0.4327,4176.8,4176.7,1.15072]
[1758666233734,0.86351,4176.8,4176.7,1.15072]
[1758666238841,0.4327,4176.8,4176.7,1.15072]
[1758666239438,0.2105,4176.8,4176.7,1.15072]
[1758666241445,0.43079,4177.0,4176.9,0.4308]
[1758666242149,1.18009,4177.0,4176.9,0.8564]
[1758666242347,1.18009,4177.0,4176.9,1.1798]
[1758666242534,0.4177,4177.0,4176.9,1.1798]
[1758666242735,0.2144,4177.0,4176.9,1.1798]
[1758666242946,0.64519,4177.0,4176.9,1.1798]
[1758666244353,1.18009,4177.0,4176.9,0.749]
[1758666244646,1.18009,4177.0,4176.9,0.544]
[1758666245041,1.18009,4177.0,4176.9,0.9748]
[1758666245347,1.18009,4177.0,4176.9,1.1798]
[1758666246051,0.4177,4177.0,4176.9,1.1798]
[1758666246250,0.2144,4177.0,4176.9,1.1798]
[1758666248255,0.64519,4177.0,4176.9,1.1798]
[1758666248551,1.08948,4177.2,4177.1,0.749]
[1758666248753,1.42108,4177.2,4177.1,1.17978]
[1758666249745,0.9903,4177.2,4177.1,1.17978]
[1758666251349,0.6587,4177.2,4177.1,1.17978]
[1758666252159,1.20809357,4177.2,4177.1,1.17978]
[1758666255760,1.51499357,4177.2,4177.1,1.17978]
[1758666256557,1.94576357,4177.2,4177.1,1.17978]
[1758666256760,1.51499357,4177.2,4177.1,1.17978]
[1758666257059,1.94576357,4177.2,4177.1,0.3234]
[1758666257558,1.16432,4176.7,4176.6,0.43083]
[1758666257753,0.5193,4176.5,4176.4,0.64055]
[1758666257953,1.16434,4176.5,4176.4,0.64055]
[1758666258259,1.16434,4176.5,4176.4,0.94695]
[1758666259550,0.4266,4176.5,4176.4,1.16845]
[1758666259748,0.85739,4177.1,4177.0,0.64049]
[1758666259955,1.95871657,4177.1,4177.0,1.07949]
[1758666260357,1.65181657,4177.1,4177.0,0.8702]
[1758666260558,1.65181657,4177.1,4177.0,1.30099]
[1758666260952,1.41081657,4177.1,4177.0,1.30099]
[1758666264957,0.98002657,4177.1,4177.0,1.30099]
[1758666266465,1.73800657,4177.1,4177.0,1.30099]
[1758666266665,1.41080657,4177.1,4177.0,1.30099]
[1758666267566,0.98002657,4177.1,4177.0,1.30099]
[1758666267765,1.41080657,4177.1,4177.0,1.30099]
[1758666285571,0.55342657,4177.1,4177.0,1.30099]
[1758666285776,3.2078,4177.3,4177.2,0.43077]
[1758666285978,3.2078,4177.3,4177.2,1.18017]
[1758666286879,3.63856,4177.3,4177.2,1.18017]
[1758666287183,0.43076,4177.3,4177.2,1.18017]
[1758666287380,1.17396,4177.3,4177.2,0.7494]
[1758666287581,1.17396,4177.3,4177.2,0.5279]
[1758666288370,1.17396,4177.3,4177.2,0.95867]
[1758666288780,1.41496,4177.3,4177.2,0.95867]
[1758666289379,1.41496,4177.3,4177.2,1.18017]
[1758666292185,0.7432,4176.6,4176.5,0.882]
[1758666292377,0.5682,4176.6,4176.2,0.43087]
[1758666292687,0.7432,4176.4,4176.3,0.7494]
[1758666293382,0.416,4176.4,4176.3,0.7494]
[1758666294088,0.736,4176.4,4176.3,0.7494]
[1758666297290,0.736,4176.4,4176.3,0.5279]
[1758666297486,0.736,4176.4,4176.3,0.3089]
[1758666298283,0.736,4176.4,4176.3,0.5146]
[1758666298482,1.16685,4176.4,4176.3,0.5146]
[1758666301390,0.7531,4175.7,4175.6,0.4083]
[1758666301586,1.18402,4175.7,4175.6,0.4083]
[1758666301885,0.86402,4175.7,4175.6,0.7129]
[1758666302091,0.43092,4175.7,4175.6,0.7129]
[1758666302492,0.64272,4175.7,4175.6,0.7129]
[1758666304189,0.86402,4175.7,4175.6,0.7129]
[1758666304498,1.18402,4175.7,4175.6,0.7129]
[1758666306392,1.18402,4175.7,4175.6,0.3046]
[1758666307199,1.18402,4175.7,4175.6,1e-08]
[1758666307402,1.18402,4175.7,4174.5,0.13931409]
[1758666307403,1.18407,4175.2,4175.1,0.2057]
[1758666308996,1.1841,4174.9,4174.8,3.6161]
[1758666309201,0.75098,4175.1,4174.8,3.6161]
[1758666309402,0.96278,4175.1,4175.0,0.5338]
[1758666309595,0.96278,4175.1,4175.0,0.8384]
[1758666310206,0.5318,4175.1,4175.0,0.8384]
[1758666310702,0.241,4175.7,4175.3,0.4083]
[1758666310903,1.20372,4175.7,4175.6,0.7129]
[1758666311198,1.42502,4175.7,4175.6,0.7129]
[1758666311400,1.42502,4175.7,4175.6,0.5103]
[1758666311907,1.42502,4175.7,4175.6,0.7129]
[1758666312904,1.18402,4175.7,4175.6,0.7129]
[1758666313111,1.42502,4175.7,4175.6,0.7129]
[1758666313310,1.42502,4175.7,4175.1,0.43097]
[1758666313311,0.95657,4175.2,4175.1,0.4303]
[1758666313810,0.7481,4175.2,4175.1,0.7387]
[1758666314309,0.7481,4175.2,4175.1,1.16968]
[1758666314700,1.17907,4175.2,4175.1,0.3084]
[1758666314905,1.1791,4174.9,4174.8,0.7387]
[1758666315102,1.1791,4174.9,4174.8,0.2077]
[1758666315306,0.65352,4174.7,4174.6,0.3084]
[1758666315506,1.17912,4174.7,4174.6,0.5161]
[1758666319316,1.17912,4174.7,4174.6,0.2077]
[1758666319807,1.17913,4174.6,4174.5,0.01101409]
[1758666320012,1.17913,4174.6,4174.5,0.52711409]
[1758666323113,0.3101,4174.6,4174.5,1.30235409]
[1758666323313,0.43098,4175.1,4174.7,0.424]
[1758666323512,0.97878,4175.1,4175.0,0.8614]
[1758666324020,0.5478,4175.1,4175.0,1.29239]
[1758666324613,1.09676,4175.4,4175.3,0.424]
[1758666324819,1.42306,4175.4,4175.3,0.7403]
[1758666325114,0.2215,4175.4,4175.3,1.17126]
[1758666325317,0.7511,4175.4,4175.3,1.17126]
[1758666325619,1.18205,4175.4,4175.3,0.531]
[1758666325819,0.7511,4175.4,4175.3,1.17126]
[1758666327416,1.18205,4175.4,4175.3,0.531]
[1758666328418,1.18207,4175.2,4175.1,0.531]
[1758666328614,0.7511,4175.2,4175.1,1.17128]
[1758666332020,0.5478,4175.2,4175.1,1.17128]
[1758666332325,0.2215,4175.2,4175.1,1.17128]
[1758666333433,0.2215,4176.4,4176.3,0.2147]
[1758666333723,0.2215,4176.4,4176.3,1.17113]
[1758666333921,3.2078,4176.5,4176.0,0.1211]
[1758666333922,3.2078,4176.5,4176.4,1.17112]
[1758666334120,3.7556,4176.5,4176.4,1.17112]
[1758666335217,3.9589,4176.5,4176.4,1.17112]
[1758666336023,3.4293,4176.5,4176.4,1.17112]
[1758666336333,3.7556,4176.5,4176.4,1.17112]
[1758666337030,0.5478,4176.5,4176.4,1.17112]
[1758666340026,0.9786,4176.5,4176.4,1.17112]
[1758666340322,0.5478,4176.5,4176.4,1.17112]
[1758666340721,0.9786,4176.5,4176.4,1.17112]
[1758666341025,0.5478,4176.5,4176.4,1.17112]
[1758666341424,0.9786,4176.5,4176.4,1.17112]
[1758666341733,0.5478,4176.5,4176.4,1.17112]
[1758666342028,4.38965,4177.0,4176.9,1.17106]
[1758666342228,4.52305,4177.0,4176.9,0.7403]
[1758666342430,4.52305,4177.0,4176.9,0.2147]
[1758666344131,0.7511,4176.3,4176.2,0.531]
[1758666344830,0.7511,4176.3,4176.2,0.96182]
[1758666345233,0.7511,4176.3,4176.2,1.17112]
[1758666346334,0.4248,4175.9,4175.8,0.96187]
[1758666346533,0.7511,4175.9,4175.8,0.96187]
[1758666347224,1.18196,4175.9,4175.8,0.531]
[1758666347432,0.7511,4175.7,4175.6,4.41069]
[1758666348029,1.18198,4175.7,4175.6,3.2078]
[1758666348431,0.85573,4175.2,4175.1,0.64564]
[1758666348634,1.18203,4175.2,4175.1,0.96194]
[1758666348835,1.18203,4175.2,4175.1,0.531]
[1758666349231,1.18203,4175.2,4175.1,0.2147]
[1758666349534,1.18203,4175.2,4175.1,0.531]
[1758666352841,0.7511,4175.2,4175.1,1.17124]
[1758666354441,3.2078,4175.7,4175.1,1.17124]
[1758666354442,3.9586,4175.7,4175.6,0.7526]
[1758666354642,4.38948,4175.7,4175.6,0.7526]
[1758666356239,4.38948,4175.7,4175.6,0.2102]
[1758666356443,1.18171,4175.4,4175.3,1.18352]
[1758666356946,1.18171,4175.4,4175.3,0.7526]
[1758666357443,1.18171,4175.4,4175.3,1.18353]
[1758666358139,0.43093,4175.2,4175.1,0.43094]
[1758666358448,1.18173,4175.2,4175.1,0.2102]
[1758666358646,1.18173,4175.2,4175.1,0.97625]
[1758666359839,0.7508,4175.2,4175.0,3.4488]
[1758666360040,0.3126,4175.1,4175.0,3.4488]
[1758666360244,0.7508,4175.1,4175.0,3.4488]
[1758666360449,0.7508,4175.1,4175.0,4.63236]
[1758666360649,0.7508,4175.1,4175.0,4.52146]
[1758666361754,0.7508,4175.1,4175.0,4.39136]
[1758666363456,0.7508,4175.1,4175.0,4.52146]
[1758666364357,0.5275,4175.1,4175.0,4.52146]
[1758666367453,0.5275,4175.3,4175.2,0.84843]
[1758666367649,0.5275,4175.3,4175.2,1.18353]
[1758666368447,0.2149,4175.6,4175.5,1.3136]
[1758666368650,3.2078,4175.7,4175.6,0.76599]
[1758666368854,3.4227,4175.7,4175.6,1.18349]
[1758666369162,0.7508,4175.1,4175.0,4.42736]
[1758666369646,0.7508,4175.1,4175.0,4.52146]
[1758666369849,0.4309,4175.6,4175.5,0.5453]
[1758666370055,0.6458,4175.6,4175.5,0.7526]
[1758666370363,1.1994,4175.6,4175.5,1.1835]
[1758666370660,1.4227,4175.6,4175.5,1.1835]
[1758666370951,0.9918,4175.6,4175.5,0.7526]
[1758666371156,0.9918,4175.6,4175.5,1.1835]
[1758666374657,1.42269,4175.6,4175.5,1.1835]
[1758666375056,0.9918,4175.6,4175.5,1.1835]
[1758666376960,3.2078,4175.7,4175.6,0.75399]
[1758666377261,4.00060712,4175.7,4175.6,1.17649]
[1758666379461,3.75960712,4175.7,4175.6,1.17649]
[1758666379655,4.53760712,4175.7,4175.6,1.17649]
[1758666380559,4.74550712,4175.7,4175.6,1.17649]
[1758666380864,5.17638712,4175.7,4175.6,1.17649]
[1758666381664,4.74550712,4175.7,4175.6,1.17649]
[1758666382260,4.74550712,4175.7,4175.6,0.43089]
[1758666382563,4.74550712,4175.7,4175.6,0.96209]
[1758666383364,5.17638712,4175.7,4175.6,0.96209]
[1758666385162,0.5404,4175.5,4175.4,0.65161]
[1758666385361,0.8503,4175.5,4175.4,0.96751]
[1758666385567,0.7261,4175.5,4175.4,1.19061]
[1758666386666,1.157,4175.5,4175.4,1.19062]
[1758666386967,0.7261,4175.2,4175.1,0.96755]
[1758666387466,1.15704,4175.2,4175.1,0.96755]
[1758666387662,1.15704,4175.2,4175.1,0.65165]
[1758666389167,1.39804,4175.2,4175.1,0.43095]
[1758666391568,1.39804,4175.2,4175.1,0.74685]
[1758666394563,1.39804,4175.2,4175.1,0.43095]
[1758666395267,1.15705,4175.1,4175.0,0.96756]
[1758666395870,1.15705,4175.1,4175.0,0.43096]
[1758666396768,1.15705,4175.1,4175.0,0.74686]
[1758666396971,1.15705,4175.1,4175.0,0.96756]
[1758666399672,0.7261,4175.1,4175.0,0.96756]
[1758666403262,0.84715,4175.1,4174.8,0.43098]
[1758666403476,0.7261,4174.7,4174.6,0.5366]
[1758666404068,0.7261,4174.7,4174.6,0.7597]
[1758666408877,0.7261,4174.7,4174.6,1.1907]
[1758666420574,3.2078,4175.2,4175.1,0.4266]
[1758666420776,3.4488,4175.2,4175.1,0.7356]
[1758666420978,4.2171,4175.2,4175.1,1.16655]
[1758666421368,3.4237,4175.2,4175.1,1.16655]
[1758666421572,0.19185108,4176.1,4175.1,1.16655]
[1758666421573,3.4237,4175.7,4175.6,1.1665]
[1758666421773,3.97724431,4175.7,4175.6,1.1665]
[1758666421973,3.7563,4175.7,4175.6,1.1665]
[1758666422179,3.2078,4175.7,4175.6,1.1665]
[1758666422374,3.5404,4176.2,4176.0,0.5481]
[1758666422574,3.7602,4176.2,4176.1,0.7356]
[1758666422775,4.52966531,4176.2,4176.1,0.7356]
[1758666424386,3.2078,4176.2,4176.1,0.7356]
[1758666424578,0.4569,4176.3,4176.2,0.85743]
[1758666424781,1.0093,4176.3,4176.2,1.16643]
[1758666424983,1.56260197,4176.3,4176.2,1.16643]
[1758666425182,1.0093,4176.3,4176.2,1.16643]
[1758666425786,1.0093,4176.3,4176.2,0.518]
[1758666425986,1.56246223,4176.3,4176.2,0.209]
[1758666426288,1.56234514,4176.3,4176.2,0.209]
[1758666426693,1.56234514,4176.3,4176.2,0.518]
[1758666426882,1.56234514,4176.3,4176.2,0.94883]
[1758666427291,1.0093,4176.3,4176.2,0.94883]
[1758666429291,1.44012,4176.3,4176.2,0.94883]
[1758666429590,1.0093,4176.3,4176.2,0.94883]
[1758666430089,0.7683,4176.3,4176.2,1.16643]
[1758666430291,1.0093,4176.3,4176.2,1.16643]
[1758666431279,1.44012,4176.3,4176.2,1.16643]
[1758666431892,1.44012,4176.3,4176.2,0.43083]
[1758666432188,1.16116,4176.0,4175.9,0.5128]
[1758666432490,1.16116,4176.0,4175.9,0.63586]
[1758666432491,4.73986,4176.0,4175.9,0.63586]
[1758666432791,4.1791,4176.0,4175.9,1.15586]
[1758666433685,4.36895,4176.0,4175.9,1.15586]
[1758666433891,4.60995,4176.0,4175.9,1.15586]
[1758666434588,4.73985,4176.0,4175.9,0.63587]
[1758666434893,4.73985,4176.0,4175.9,0.205]
[1758666435085,4.73985,4176.0,4175.9,0.5128]
[1758666436495,0.8602,4175.5,4175.4,0.94371]
[1758666436692,0.8602,4175.5,4175.4,0.5128]
[1758666436882,0.8602,4175.5,4175.4,0.94372]
[1758666437088,0.7303,4175.5,4175.4,1.15592]
[1758666438603,0.241,4175.6,4175.5,0.97871]
[1758666438895,0.6719,4175.6,4175.5,1.28651]
[1758666439085,1.1916,4175.6,4175.5,1.28651]
[1758666439799,1.1916,4175.6,4175.5,0.8556]
[1758666440094,1.4022,4175.6,4175.5,0.8556]
[1758666444906,1.4022,4175.6,4175.5,0.725]
[1758666446003,1.4022,4175.6,4175.5,0.5128]
[1758666446207,0.43093,4175.3,4175.2,0.43093]
[1758666446410,1.17923,4175.3,4175.2,0.43093]
[1758666446607,1.17923,4175.3,4175.2,0.64773]
[1758666446800,1.17923,4175.3,4175.2,1.18633]
[1758666447404,0.2034,4174.7,4174.6,0.7554]
[1758666447603,0.431,4174.6,4174.5,0.01101409]
[1758666447809,1.1793,4174.6,4174.5,0.01101409]
[1758666450698,1.1793,4174.6,4174.5,0.54401409]
[1758666451207,0.3293,4175.0,4174.5,5.45191409]
[1758666451407,0.76026,4175.0,4174.9,1.18637]
[1758666451607,0.67195,4175.1,4175.0,0.99486]
[1758666451909,0.4566,4175.1,4175.0,1.31106]
[1758666453011,0.2156,4175.1,4175.0,1.31106]